[Event "*** Titled Tuesday Blitz"]
[Site "Chess.com"]
[Date "2020.11.03"]
[Round "2"]
[White "DenLaz"]
[Black "IMJonathanCarlstedt"]
[Result "0-1"]
[WhiteElo "2732"]
[BlackElo "2520"]
[TimeControl "180+1"]
[EndTime "10:17:52 PST"]
[Termination "IMJonathanCarlstedt won by resignation"]

1. d4 {[%clk 0:03:00.9]} 1... Nf6 {[%clk 0:02:58.9]} 2. c4 {[%clk 0:03:01.5]}
2... e6 {[%clk 0:02:58.8]} 3. Nf3 {[%clk 0:03:01.3]} 3... Bb4+ {[%clk
0:02:58.5]} 4. Bd2 {[%clk 0:03:01.1]} 4... Qe7 {[%clk 0:02:58.2]} 5. g3 {[%clk
0:03:00.3]} 5... Bxd2+ {[%clk 0:02:57.9]} 6. Qxd2 {[%clk 0:02:50.5]} 6... Nc6
{[%clk 0:02:58.2]} 7. Nc3 {[%clk 0:02:49.2]} 7... d6 {[%clk 0:02:57.4]} 8. d5
{[%clk 0:02:47.2]} 8... exd5 {[%clk 0:02:56.9]} 9. cxd5 {[%clk 0:02:47.1]} 9...
Ne5 {[%clk 0:02:56.3]} 10. Nxe5 {[%clk 0:02:44.6]} 10... dxe5 {[%clk 0:02:55.2]}
11. Bg2 {[%clk 0:02:44.8]} 11... O-O {[%clk 0:02:54.4]} 12. O-O {[%clk 0:02:45]}
12... Rd8 {[%clk 0:02:49.3]} 13. Rfd1 {[%clk 0:02:44.2]} 13... a6 {[%clk
0:02:43.1]} 14. Rac1 {[%clk 0:02:43.6]} 14... Rb8 {[%clk 0:02:42.2]} 15. Qe3
{[%clk 0:02:35.3]} 15... b6 {[%clk 0:02:35.2]} 16. Ne4 {[%clk 0:02:27.2]} 16...
Nxe4 {[%clk 0:02:28]} 17. Qxe4 {[%clk 0:02:28.1]} 17... Bb7 {[%clk 0:02:26.2]}
18. Rd3 {[%clk 0:02:23]} 18... Rbc8 {[%clk 0:02:21]} 19. Qc4 {[%clk 0:02:20.2]}
19... Kh8 {[%clk 0:02:08.5]} 20. Rdc3 {[%clk 0:02:18.1]} 20... Qd6 {[%clk
0:02:03.5]} 21. e4 {[%clk 0:02:16.6]} 21... c6 {[%clk 0:01:57.8]} 22. dxc6
{[%clk 0:02:14.7]} 22... Rxc6 {[%clk 0:01:52.1]} 23. Qxf7 {[%clk 0:02:10.5]}
23... Rxc3 {[%clk 0:01:49.5]} 24. bxc3 {[%clk 0:02:11]} 24... Qd7 {[%clk
0:01:43.3]} 25. Qb3 {[%clk 0:01:43.7]} 25... b5 {[%clk 0:01:35]} 26. h4 {[%clk
0:01:40.2]} 26... Qd2 {[%clk 0:01:31.2]} 27. Rf1 {[%clk 0:01:39.2]} 27... h6
{[%clk 0:01:19.4]} 28. a4 {[%clk 0:01:28.8]} 28... Bc6 {[%clk 0:01:18]} 29. axb5
{[%clk 0:01:27.1]} 29... Bxb5 {[%clk 0:01:17.3]} 30. c4 {[%clk 0:01:26.6]} 30...
Rd3 {[%clk 0:01:11.2]} 31. Qb1 {[%clk 0:01:25.2]} 31... Bxc4 {[%clk 0:01:09.9]}
32. Rc1 {[%clk 0:00:40.7]} 32... Rb3 {[%clk 0:01:08.7]} 33. Qa1 {[%clk
0:00:40.7]} 33... Rb2 {[%clk 0:01:08.7]} 34. Rf1 {[%clk 0:00:22.6]} 34... Bxf1
{[%clk 0:01:07.8]} 35. Qxf1 {[%clk 0:00:23.5]} 35... a5 {[%clk 0:01:05.9]} 0-1

[Event "*** Titled Tuesday Blitz"]
[Site "Chess.com"]
[Date "2020.11.03"]
[Round "2"]
[White "A-S-00"]
[Black "Flawless_Fighter"]
[Result "0-1"]
[WhiteElo "2307"]
[BlackElo "2664"]
[TimeControl "180+1"]
[EndTime "10:17:53 PST"]
[Termination "Flawless_Fighter won on time"]

1. d4 {[%clk 0:02:59.6]} 1... d5 {[%clk 0:02:59.1]} 2. Nf3 {[%clk 0:02:59.3]}
2... e6 {[%clk 0:02:59.4]} 3. c4 {[%clk 0:02:59.7]} 3... Nf6 {[%clk 0:02:59.9]}
4. g3 {[%clk 0:03:00]} 4... Bb4+ {[%clk 0:02:59.2]} 5. Bd2 {[%clk 0:02:58.9]}
5... Be7 {[%clk 0:02:59.8]} 6. Bg2 {[%clk 0:02:58.9]} 6... c6 {[%clk 0:02:59.1]}
7. O-O {[%clk 0:02:58.7]} 7... Nbd7 {[%clk 0:02:59.8]} 8. Qc2 {[%clk 0:02:57.1]}
8... b6 {[%clk 0:03:00.4]} 9. Bf4 {[%clk 0:02:53.9]} 9... Bb7 {[%clk 0:03:00.7]}
10. Nbd2 {[%clk 0:02:52.9]} 10... Nh5 {[%clk 0:02:57.1]} 11. e4 {[%clk
0:02:43.2]} 11... Nxf4 {[%clk 0:02:55]} 12. gxf4 {[%clk 0:02:43]} 12... dxe4
{[%clk 0:02:55.7]} 13. Nxe4 {[%clk 0:02:42.4]} 13... O-O {[%clk 0:02:55.4]} 14.
Ne5 {[%clk 0:02:35.5]} 14... f6 {[%clk 0:02:51.8]} 15. Nxd7 {[%clk 0:02:23.3]}
15... Qxd7 {[%clk 0:02:52.7]} 16. Rad1 {[%clk 0:02:21.5]} 16... Qc7 {[%clk
0:02:52.6]} 17. Qd2 {[%clk 0:02:13]} 17... Rad8 {[%clk 0:02:52.9]} 18. Qe3
{[%clk 0:02:09.4]} 18... Kh8 {[%clk 0:02:52.6]} 19. Bh3 {[%clk 0:02:01.8]} 19...
Rfe8 {[%clk 0:02:45.6]} 20. c5 {[%clk 0:01:35]} 20... Bc8 {[%clk 0:02:26.4]} 21.
Qg3 {[%clk 0:01:19.7]} 21... Ba6 {[%clk 0:02:09.3]} 22. Rfe1 {[%clk 0:01:17.2]}
22... Bc4 {[%clk 0:02:08.3]} 23. f5 {[%clk 0:00:48.7]} 23... Qxg3+ {[%clk
0:02:02.5]} 24. Nxg3 {[%clk 0:00:48.4]} 24... bxc5 {[%clk 0:01:59.5]} 25. fxe6
{[%clk 0:00:44.4]} 25... cxd4 {[%clk 0:01:57]} 26. Nf5 {[%clk 0:00:44.2]} 26...
Bb4 {[%clk 0:01:43.7]} 27. e7 {[%clk 0:00:32]} 27... Rd7 {[%clk 0:01:39.9]} 28.
Re4 {[%clk 0:00:31.1]} 28... g6 {[%clk 0:01:30.9]} 29. Nxd4 {[%clk 0:00:12.4]}
29... f5 {[%clk 0:01:30.1]} 30. Re3 {[%clk 0:00:02.6]} 30... c5 {[%clk 0:01:28]}
31. a3 {[%clk 0:00:01.1]} 31... cxd4 {[%clk 0:01:17]} 0-1

[Event "*** Titled Tuesday Blitz"]
[Site "Chess.com"]
[Date "2020.11.03"]
[Round "2"]
[White "Maxim_e2e4"]
[Black "IngOscarArdila"]
[Result "1-0"]
[WhiteElo "2397"]
[BlackElo "2122"]
[TimeControl "180+1"]
[EndTime "10:17:53 PST"]
[Termination "Maxim_e2e4 won by checkmate"]

1. e4 {[%clk 0:03:00.9]} 1... e5 {[%clk 0:02:58.8]} 2. Nf3 {[%clk 0:03:00.4]}
2... Nc6 {[%clk 0:02:58.6]} 3. Bc4 {[%clk 0:02:59.8]} 3... Bc5 {[%clk
0:02:57.7]} 4. O-O {[%clk 0:02:59.3]} 4... Nf6 {[%clk 0:02:57.4]} 5. d4 {[%clk
0:02:59.5]} 5... Nxd4 {[%clk 0:02:53.9]} 6. Nxe5 {[%clk 0:02:57.1]} 6... O-O
{[%clk 0:02:50.9]} 7. Nc3 {[%clk 0:02:40.3]} 7... d6 {[%clk 0:02:49.7]} 8. Nd3
{[%clk 0:02:40]} 8... Bb6 {[%clk 0:02:46]} 9. Bg5 {[%clk 0:02:39.6]} 9... h6
{[%clk 0:02:45.1]} 10. Bh4 {[%clk 0:02:39.1]} 10... g5 {[%clk 0:02:13.5]} 11.
Bg3 {[%clk 0:02:38.4]} 11... Bg4 {[%clk 0:02:14]} 12. Qd2 {[%clk 0:02:32.3]}
12... Re8 {[%clk 0:02:11.3]} 13. Rae1 {[%clk 0:02:30.7]} 13... a6 {[%clk
0:02:04.8]} 14. Kh1 {[%clk 0:02:28.9]} 14... Nh5 {[%clk 0:02:04]} 15. f4 {[%clk
0:02:18.4]} 15... Nxg3+ {[%clk 0:01:59.1]} 16. hxg3 {[%clk 0:02:17.8]} 16... Ne6
{[%clk 0:01:40.5]} 17. Nd5 {[%clk 0:02:14.1]} 17... gxf4 {[%clk 0:01:36.3]} 18.
Rxf4 {[%clk 0:01:39.1]} 18... Nxf4 {[%clk 0:01:35.2]} 19. Qxf4 {[%clk 0:01:40]}
19... Qg5 {[%clk 0:01:13.9]} 20. Nf6+ {[%clk 0:01:34.5]} 20... Kg7 {[%clk
0:01:13.4]} 21. Nxg4 {[%clk 0:01:32.9]} 21... Qxf4 {[%clk 0:01:13.1]} 22. Nxf4
{[%clk 0:01:27]} 22... h5 {[%clk 0:01:02.8]} 23. Nxh5+ {[%clk 0:01:00.5]} 23...
Kg6 {[%clk 0:01:02.8]} 24. Ngf6 {[%clk 0:01:00.3]} 24... Rh8 {[%clk 0:01:01]}
25. g4 {[%clk 0:01:00]} 25... Bd4 {[%clk 0:00:56.1]} 26. Rf1 {[%clk 0:00:59.4]}
26... Bxf6 {[%clk 0:00:47]} 27. Rxf6+ {[%clk 0:00:58.2]} 27... Kg5 {[%clk
0:00:47.5]} 28. Rf5+ {[%clk 0:00:56.4]} 28... Kxg4 {[%clk 0:00:40.8]} 29. Be2+
{[%clk 0:00:55.7]} 29... Kh4 {[%clk 0:00:40.7]} 30. Kh2 {[%clk 0:00:55.5]} 30...
Rag8 {[%clk 0:00:32.3]} 31. g3+ {[%clk 0:00:53.2]} 31... Rxg3 {[%clk 0:00:31.5]}
32. Nxg3 {[%clk 0:00:54.1]} 32... Rh6 {[%clk 0:00:26.3]} 33. Kg2 {[%clk
0:00:52.7]} 33... Rg6 {[%clk 0:00:24.9]} 34. Rh5# {[%clk 0:00:52.1]} 1-0

[Event "*** Titled Tuesday Blitz"]
[Site "Chess.com"]
[Date "2020.11.03"]
[Round "2"]
[White "Kurai"]
[Black "joppie2"]
[Result "0-1"]
[WhiteElo "2564"]
[BlackElo "2860"]
[TimeControl "180+1"]
[EndTime "10:17:58 PST"]
[Termination "joppie2 won by resignation"]

1. d4 {[%clk 0:03:00.4]} 1... d5 {[%clk 0:02:58.2]} 2. c4 {[%clk 0:03:00.8]}
2... e6 {[%clk 0:02:58.8]} 3. Nc3 {[%clk 0:02:59.6]} 3... a6 {[%clk 0:02:59.2]}
4. c5 {[%clk 0:02:58.5]} 4... Nf6 {[%clk 0:02:57.7]} 5. Nf3 {[%clk 0:02:58.1]}
5... Nc6 {[%clk 0:02:57.7]} 6. Bf4 {[%clk 0:02:54.8]} 6... b6 {[%clk 0:02:55.8]}
7. cxb6 {[%clk 0:02:53.7]} 7... cxb6 {[%clk 0:02:56.7]} 8. e3 {[%clk 0:02:52.3]}
8... Be7 {[%clk 0:02:57.2]} 9. Bd3 {[%clk 0:02:51.9]} 9... O-O {[%clk 0:02:57]}
10. Rc1 {[%clk 0:02:49.6]} 10... Bd7 {[%clk 0:02:55.5]} 11. O-O {[%clk
0:02:46.7]} 11... h6 {[%clk 0:02:55.5]} 12. Qe2 {[%clk 0:02:45.3]} 12... b5
{[%clk 0:02:55.6]} 13. e4 {[%clk 0:02:34]} 13... dxe4 {[%clk 0:02:53.6]} 14.
Nxe4 {[%clk 0:02:33.9]} 14... Nb4 {[%clk 0:02:51.5]} 15. Bb1 {[%clk 0:02:31.8]}
15... Nbd5 {[%clk 0:02:50.1]} 16. Be5 {[%clk 0:02:05.6]} 16... b4 {[%clk
0:02:48.9]} 17. Nd6 {[%clk 0:02:01]} 17... Bxd6 {[%clk 0:02:41]} 18. Bxd6 {[%clk
0:02:00.9]} 18... Bb5 {[%clk 0:02:41.5]} 19. Qe5 {[%clk 0:01:53.1]} 19... Bxf1
{[%clk 0:02:39.9]} 20. Bxf8 {[%clk 0:01:52.9]} 20... Bxg2 {[%clk 0:02:34.9]} 21.
Kxg2 {[%clk 0:01:17.3]} 21... Qxf8 {[%clk 0:02:30.8]} 22. Rc6 {[%clk 0:01:12.5]}
22... a5 {[%clk 0:02:24.1]} 23. Kf1 {[%clk 0:01:05.8]} 23... Rc8 {[%clk
0:02:23.5]} 24. Qd6 {[%clk 0:00:44.1]} 24... Qe8 {[%clk 0:02:23.3]} 25. Rc5
{[%clk 0:00:43]} 25... Nd7 {[%clk 0:02:08.3]} 26. Rc6 {[%clk 0:00:29]} 26... g6
{[%clk 0:01:50.2]} 27. Be4 {[%clk 0:00:23.3]} 27... N7f6 {[%clk 0:01:47.9]} 28.
Bxd5 {[%clk 0:00:22.4]} 28... Nxd5 {[%clk 0:01:48.8]} 29. Ne5 {[%clk 0:00:22]}
29... Kg7 {[%clk 0:01:45.3]} 30. Rc5 {[%clk 0:00:20.4]} 30... Rd8 {[%clk
0:01:43.2]} 31. Qa6 {[%clk 0:00:19.8]} 31... Ne7 {[%clk 0:01:37.9]} 32. Rc7
{[%clk 0:00:18.5]} 32... Rxd4 {[%clk 0:01:35]} 33. Qa7 {[%clk 0:00:17.3]} 33...
Qb5+ {[%clk 0:01:34.3]} 34. Kg2 {[%clk 0:00:10.5]} 34... Qxe5 {[%clk 0:01:34]}
35. Rxe7 {[%clk 0:00:10.9]} 35... Qg5+ {[%clk 0:01:30.8]} 36. Kf1 {[%clk
0:00:10.9]} 36... Rd1+ {[%clk 0:01:28.4]} 37. Ke2 {[%clk 0:00:11.5]} 37... Qd2+
{[%clk 0:01:28.9]} 38. Kf3 {[%clk 0:00:12.2]} 38... Qd5+ {[%clk 0:01:29.2]} 39.
Ke3 {[%clk 0:00:03.1]} 39... Rd3+ {[%clk 0:01:28.4]} 40. Kf4 {[%clk 0:00:04]}
0-1

[Event "*** Titled Tuesday Blitz"]
[Site "Chess.com"]
[Date "2020.11.03"]
[Round "2"]
[White "Salem-AR"]
[Black "TrickyFortem"]
[Result "1-0"]
[WhiteElo "2850"]
[BlackElo "2552"]
[TimeControl "180+1"]
[EndTime "10:18:00 PST"]
[Termination "Salem-AR won by checkmate"]

1. d4 {[%clk 0:03:00.9]} 1... Nf6 {[%clk 0:02:55.6]} 2. c4 {[%clk 0:03:01.6]}
2... g6 {[%clk 0:02:53.2]} 3. Nc3 {[%clk 0:03:01.5]} 3... Bg7 {[%clk 0:02:52.7]}
4. e4 {[%clk 0:03:01.9]} 4... d6 {[%clk 0:02:52.7]} 5. Nf3 {[%clk 0:03:01.7]}
5... O-O {[%clk 0:02:53.1]} 6. Be2 {[%clk 0:03:02.5]} 6... e5 {[%clk 0:02:52.2]}
7. d5 {[%clk 0:03:03.2]} 7... a5 {[%clk 0:02:51.2]} 8. Bg5 {[%clk 0:03:03.9]}
8... h6 {[%clk 0:02:50.6]} 9. Be3 {[%clk 0:03:04.4]} 9... Ng4 {[%clk 0:02:48.5]}
10. Bc1 {[%clk 0:03:03.5]} 10... f5 {[%clk 0:02:48.7]} 11. exf5 {[%clk
0:03:03.6]} 11... gxf5 {[%clk 0:02:48.3]} 12. g3 {[%clk 0:03:04.4]} 12... Na6
{[%clk 0:02:47.1]} 13. Nh4 {[%clk 0:03:04.3]} 13... Nf6 {[%clk 0:02:44.3]} 14.
f3 {[%clk 0:03:03.8]} 14... Nc5 {[%clk 0:02:44.1]} 15. Be3 {[%clk 0:03:03.8]}
15... f4 {[%clk 0:02:41.9]} 16. Bxc5 {[%clk 0:03:03.8]} 16... dxc5 {[%clk
0:02:42.1]} 17. Qc2 {[%clk 0:03:04.5]} 17... Nh5 {[%clk 0:02:33.9]} 18. Ne4
{[%clk 0:02:51.9]} 18... a4 {[%clk 0:02:27.7]} 19. a3 {[%clk 0:02:49.1]} 19...
b6 {[%clk 0:02:25.5]} 20. O-O-O {[%clk 0:02:48.3]} 20... Rf7 {[%clk 0:02:13.8]}
21. Kb1 {[%clk 0:02:35]} 21... Nf6 {[%clk 0:01:55.4]} 22. Bd3 {[%clk 0:02:33.3]}
22... Nxe4 {[%clk 0:01:54.9]} 23. Bxe4 {[%clk 0:02:33.3]} 23... Rf6 {[%clk
0:01:50]} 24. gxf4 {[%clk 0:02:27.9]} 24... Rxf4 {[%clk 0:01:48.7]} 25. Bh7+
{[%clk 0:02:17.4]} 25... Kf7 {[%clk 0:01:47]} 26. Ng6 {[%clk 0:01:42.1]} 26...
Rd4 {[%clk 0:01:35.6]} 27. Nxe5+ {[%clk 0:01:35.1]} 27... Bxe5 {[%clk
0:01:34.3]} 28. Qg6+ {[%clk 0:01:35.8]} 28... Ke7 {[%clk 0:01:34.4]} 29. Rde1
{[%clk 0:01:32.3]} 29... Qh8 {[%clk 0:01:33.5]} 30. Ka2 {[%clk 0:00:56.8]} 30...
Kd8 {[%clk 0:01:22.1]} 31. Rhg1 {[%clk 0:00:39]} 31... Rf4 {[%clk 0:01:03.2]}
32. Qc6 {[%clk 0:00:33.8]} 32... Ra7 {[%clk 0:00:56]} 33. Rg8+ {[%clk
0:00:28.6]} 33... Qxg8 {[%clk 0:00:51.3]} 34. Bxg8 {[%clk 0:00:29.5]} 34... Bd6
{[%clk 0:00:48]} 35. Re8# {[%clk 0:00:28.3]} 1-0

[Event "*** Titled Tuesday Blitz"]
[Site "Chess.com"]
[Date "2020.11.03"]
[Round "2"]
[White "Artyom_ChessMate"]
[Black "kuban1991"]
[Result "0-1"]
[WhiteElo "2583"]
[BlackElo "2905"]
[TimeControl "180+1"]
[EndTime "10:18:01 PST"]
[Termination "kuban1991 won by resignation"]

1. e4 {[%clk 0:03:00.9]} 1... e6 {[%clk 0:02:59.5]} 2. d4 {[%clk 0:03:00.8]}
2... d5 {[%clk 0:02:59.6]} 3. Bd3 {[%clk 0:03:01.7]} 3... c5 {[%clk 0:02:59.4]}
4. exd5 {[%clk 0:03:01.5]} 4... exd5 {[%clk 0:03:00.3]} 5. c3 {[%clk 0:03:01.8]}
5... cxd4 {[%clk 0:02:58]} 6. cxd4 {[%clk 0:02:57]} 6... Nc6 {[%clk 0:02:58.1]}
7. Nf3 {[%clk 0:02:42.4]} 7... Bd6 {[%clk 0:02:57.8]} 8. O-O {[%clk 0:02:23.3]}
8... Nge7 {[%clk 0:02:57.2]} 9. Nc3 {[%clk 0:02:23.3]} 9... O-O {[%clk
0:02:55.4]} 10. h3 {[%clk 0:02:23.2]} 10... h6 {[%clk 0:02:54.5]} 11. Re1 {[%clk
0:02:11.7]} 11... Be6 {[%clk 0:02:47]} 12. a3 {[%clk 0:02:04.3]} 12... Rc8
{[%clk 0:02:46.2]} 13. b4 {[%clk 0:02:00.9]} 13... Nxb4 {[%clk 0:02:41.1]} 14.
axb4 {[%clk 0:02:01.1]} 14... Rxc3 {[%clk 0:02:40.8]} 15. Rxa7 {[%clk 0:02:00]}
15... Qb6 {[%clk 0:02:33.8]} 16. Ra1 {[%clk 0:01:48.5]} 16... Rfc8 {[%clk
0:02:26.6]} 17. b5 {[%clk 0:01:39.8]} 17... Bf5 {[%clk 0:02:01]} 18. Bf1 {[%clk
0:01:08.4]} 18... Be4 {[%clk 0:01:50.9]} 19. Bd2 {[%clk 0:01:07.1]} 19... Rc2
{[%clk 0:01:46.7]} 20. Ba5 {[%clk 0:01:06.2]} 20... Qa7 {[%clk 0:01:40.8]} 21.
Bc7 {[%clk 0:00:51.7]} 21... Qxa1 {[%clk 0:01:39.8]} 22. Qxa1 {[%clk 0:00:52.6]}
22... R2xc7 {[%clk 0:01:36.7]} 23. Ne5 {[%clk 0:00:52.4]} 23... Ng6 {[%clk
0:01:27]} 24. f3 {[%clk 0:00:50.4]} 24... Bf5 {[%clk 0:01:23.3]} 25. g4 {[%clk
0:00:48.9]} 25... Nxe5 {[%clk 0:01:20.9]} 26. dxe5 {[%clk 0:00:49.1]} 26... Bc5+
{[%clk 0:01:21.5]} 27. Kh1 {[%clk 0:00:47.5]} 27... Be6 {[%clk 0:01:21.2]} 28.
Bd3 {[%clk 0:00:47.1]} 28... Bf2 {[%clk 0:01:18.1]} 29. Rf1 {[%clk 0:00:45.3]}
29... Be3 {[%clk 0:01:18.6]} 30. Qa3 {[%clk 0:00:25.7]} 30... Rc3 {[%clk
0:01:17.9]} 31. Qe7 {[%clk 0:00:17.5]} 31... Rxd3 {[%clk 0:01:17.3]} 32. Qxb7
{[%clk 0:00:16.8]} 32... Rc2 {[%clk 0:01:14.7]} 33. Qa8+ {[%clk 0:00:03.1]}
33... Kh7 {[%clk 0:01:14.1]} 34. Qa1 {[%clk 0:00:03.2]} 34... Rdd2 {[%clk
0:01:13.5]} 0-1

[Event "*** Titled Tuesday Blitz"]
[Site "Chess.com"]
[Date "2020.11.03"]
[Round "2"]
[White "baki83"]
[Black "Crazy_girl99"]
[Result "1-0"]
[WhiteElo "2798"]
[BlackElo "2517"]
[TimeControl "180+1"]
[EndTime "10:18:01 PST"]
[Termination "baki83 won on time"]

1. e4 {[%clk 0:03:00.9]} 1... e5 {[%clk 0:02:59.1]} 2. Nf3 {[%clk 0:02:56.7]}
2... Nc6 {[%clk 0:02:58.7]} 3. Bb5 {[%clk 0:02:56.1]} 3... a6 {[%clk 0:02:58.9]}
4. Ba4 {[%clk 0:02:56]} 4... Nf6 {[%clk 0:02:59.4]} 5. O-O {[%clk 0:02:56.3]}
5... Nxe4 {[%clk 0:02:55.6]} 6. d4 {[%clk 0:02:55.4]} 6... b5 {[%clk 0:02:55.4]}
7. Bb3 {[%clk 0:02:55.6]} 7... d5 {[%clk 0:02:56]} 8. dxe5 {[%clk 0:02:55.6]}
8... Be6 {[%clk 0:02:56.5]} 9. c3 {[%clk 0:02:52.7]} 9... Be7 {[%clk 0:02:55.8]}
10. Nbd2 {[%clk 0:02:52.6]} 10... O-O {[%clk 0:02:54.1]} 11. Bc2 {[%clk
0:02:42.2]} 11... f5 {[%clk 0:02:53.1]} 12. exf6 {[%clk 0:02:41.6]} 12... Nxf6
{[%clk 0:02:52.9]} 13. h3 {[%clk 0:02:38.5]} 13... Qd7 {[%clk 0:02:51.6]} 14.
Re1 {[%clk 0:02:37.4]} 14... Rae8 {[%clk 0:02:46.3]} 15. Nf1 {[%clk 0:02:37.4]}
15... Bd6 {[%clk 0:02:37.7]} 16. Bg5 {[%clk 0:02:14]} 16... g6 {[%clk
0:01:49.4]} 17. Bh6 {[%clk 0:02:05]} 17... Rf7 {[%clk 0:01:39.5]} 18. Ng5 {[%clk
0:02:02.9]} 18... Rfe7 {[%clk 0:01:37.2]} 19. Nxe6 {[%clk 0:01:59.9]} 19... Rxe6
{[%clk 0:01:37]} 20. Rxe6 {[%clk 0:01:58.4]} 20... Qxe6 {[%clk 0:01:35.8]} 21.
Bg5 {[%clk 0:01:54.8]} 21... Ne4 {[%clk 0:01:31.1]} 22. Bb3 {[%clk 0:01:43.7]}
22... Kh8 {[%clk 0:00:15]} 23. Bxd5 {[%clk 0:01:39.8]} 23... Qf5 {[%clk
0:00:12.4]} 24. Bxe4 {[%clk 0:01:31.2]} 24... Rxe4 {[%clk 0:00:10.1]} 25. Be3
{[%clk 0:01:30]} 25... Re8 {[%clk 0:00:06.9]} 26. Qg4 {[%clk 0:01:24.8]} 26...
Qe5 {[%clk 0:00:05.6]} 27. Qf3 {[%clk 0:01:21.3]} 27... Qe4 {[%clk 0:00:03.5]}
28. Qxe4 {[%clk 0:01:20.1]} 28... Rxe4 {[%clk 0:00:04.4]} 29. Rd1 {[%clk
0:01:19.4]} 29... Ne5 {[%clk 0:00:03.9]} 30. Nd2 {[%clk 0:01:09.4]} 30... Ra4
{[%clk 0:00:03.6]} 31. Bd4 {[%clk 0:01:08.5]} 31... Rxa2 {[%clk 0:00:03.1]} 32.
Nf3 {[%clk 0:01:07.6]} 32... Rxb2 {[%clk 0:00:01.5]} 33. Nxe5 {[%clk 0:01:06.9]}
33... Kg8 {[%clk 0:00:01.4]} 34. Nc6 {[%clk 0:01:04.2]} 1-0

[Event "*** Titled Tuesday Blitz"]
[Site "Chess.com"]
[Date "2020.11.03"]
[Round "2"]
[White "CaspiIsrael"]
[Black "Duhless"]
[Result "0-1"]
[WhiteElo "2619"]
[BlackElo "2994"]
[TimeControl "180+1"]
[EndTime "10:18:03 PST"]
[Termination "Duhless won by resignation"]

1. e4 {[%clk 0:01:36.5]} 1... c6 {[%clk 0:03:00.9]} 2. d4 {[%clk 0:01:35.7]}
2... d5 {[%clk 0:03:01.8]} 3. e5 {[%clk 0:01:36.1]} 3... Bf5 {[%clk 0:03:01.3]}
4. h4 {[%clk 0:01:36.5]} 4... h5 {[%clk 0:03:00.3]} 5. Bd3 {[%clk 0:01:36.9]}
5... Bxd3 {[%clk 0:02:59.3]} 6. Qxd3 {[%clk 0:01:37.8]} 6... e6 {[%clk
0:03:00.2]} 7. Bg5 {[%clk 0:01:37.6]} 7... Ne7 {[%clk 0:02:59.5]} 8. Nd2 {[%clk
0:01:36.5]} 8... Nd7 {[%clk 0:02:55.8]} 9. Ngf3 {[%clk 0:01:36.1]} 9... c5
{[%clk 0:02:55.6]} 10. c4 {[%clk 0:01:35.3]} 10... Qa5 {[%clk 0:02:46.6]} 11.
O-O {[%clk 0:01:30.5]} 11... Qa6 {[%clk 0:02:46.3]} 12. Qb3 {[%clk 0:01:18.1]}
12... dxc4 {[%clk 0:02:43.1]} 13. Nxc4 {[%clk 0:01:16.6]} 13... Nd5 {[%clk
0:02:43.7]} 14. Rfd1 {[%clk 0:01:07.3]} 14... b5 {[%clk 0:02:40.2]} 15. Ne3
{[%clk 0:01:05.6]} 15... c4 {[%clk 0:02:39]} 16. Qc2 {[%clk 0:01:05.8]} 16...
N7b6 {[%clk 0:02:33.5]} 17. a4 {[%clk 0:01:05]} 17... b4 {[%clk 0:02:31]} 18. a5
{[%clk 0:01:03]} 18... Nxe3 {[%clk 0:02:19.2]} 19. fxe3 {[%clk 0:01:00.1]} 19...
b3 {[%clk 0:02:15.9]} 20. Qf2 {[%clk 0:00:57.6]} 20... Nd5 {[%clk 0:02:12.7]}
21. e4 {[%clk 0:00:57.5]} 21... Nb4 {[%clk 0:02:12.4]} 22. Qg3 {[%clk
0:00:38.3]} 22... Nd3 {[%clk 0:02:06.5]} 23. Rd2 {[%clk 0:00:33.9]} 23... Bb4
{[%clk 0:02:05.4]} 24. Re2 {[%clk 0:00:30.8]} 24... Nxb2 {[%clk 0:02:03.5]} 25.
Rxb2 {[%clk 0:00:30.1]} 25... Bc3 {[%clk 0:02:03.9]} 26. Bc1 {[%clk 0:00:30]}
26... g6 {[%clk 0:01:52.7]} 27. Qf4 {[%clk 0:00:23.1]} 27... Rc8 {[%clk
0:01:51.7]} 28. Qe3 {[%clk 0:00:21.2]} 28... Bb4 {[%clk 0:01:41.3]} 29. Ng5
{[%clk 0:00:17.7]} 29... O-O {[%clk 0:01:39.1]} 30. Qe2 {[%clk 0:00:12.8]} 30...
Bc3 {[%clk 0:01:32.8]} 31. Be3 {[%clk 0:00:11.5]} 31... Qb5 {[%clk 0:01:29.9]}
32. Rbb1 {[%clk 0:00:11.2]} 32... Bxa1 {[%clk 0:01:29.4]} 33. Rxa1 {[%clk
0:00:11.4]} 33... Qb4 {[%clk 0:01:27.8]} 34. g4 {[%clk 0:00:08]} 34... b2 {[%clk
0:01:27.8]} 35. Rf1 {[%clk 0:00:07.1]} 35... b1=Q {[%clk 0:01:26.6]} 36. gxh5
{[%clk 0:00:07.4]} 36... Qd3 {[%clk 0:01:24.5]} 37. Qf3 {[%clk 0:00:06.1]} 37...
Qbc3 {[%clk 0:01:22.1]} 38. Nxf7 {[%clk 0:00:04.1]} 38... Qxe3+ {[%clk
0:01:21.8]} 0-1

[Event "*** Titled Tuesday Blitz"]
[Site "Chess.com"]
[Date "2020.11.03"]
[Round "2"]
[White "machupichu10"]
[Black "AquivaRubinstein"]
[Result "1-0"]
[WhiteElo "2768"]
[BlackElo "2501"]
[TimeControl "180+1"]
[EndTime "10:18:03 PST"]
[Termination "machupichu10 won on time"]

1. d4 {[%clk 0:03:00.9]} 1... Nf6 {[%clk 0:02:58.1]} 2. c4 {[%clk 0:02:58.9]}
2... c5 {[%clk 0:02:55.7]} 3. d5 {[%clk 0:02:58.6]} 3... e6 {[%clk 0:02:55.2]}
4. Nc3 {[%clk 0:02:58.4]} 4... exd5 {[%clk 0:02:54.5]} 5. cxd5 {[%clk
0:02:58.8]} 5... d6 {[%clk 0:02:54.2]} 6. Nf3 {[%clk 0:02:58.8]} 6... g6 {[%clk
0:02:53.8]} 7. Bf4 {[%clk 0:02:57.2]} 7... Bg7 {[%clk 0:02:53.1]} 8. e3 {[%clk
0:02:57.6]} 8... O-O {[%clk 0:02:52.2]} 9. Be2 {[%clk 0:02:50.2]} 9... a6 {[%clk
0:02:34.9]} 10. a4 {[%clk 0:02:49.7]} 10... Qe7 {[%clk 0:02:34.5]} 11. O-O
{[%clk 0:02:48.9]} 11... Nbd7 {[%clk 0:02:31.8]} 12. h3 {[%clk 0:02:48.6]} 12...
Nh5 {[%clk 0:02:22.3]} 13. Bh2 {[%clk 0:02:48.4]} 13... f5 {[%clk 0:02:18.5]}
14. Nd2 {[%clk 0:02:48.3]} 14... Nhf6 {[%clk 0:02:07]} 15. Nc4 {[%clk
0:02:48.3]} 15... Ne8 {[%clk 0:02:02.1]} 16. a5 {[%clk 0:02:48.5]} 16... Rb8
{[%clk 0:01:44.3]} 17. Na4 {[%clk 0:02:41.7]} 17... Ne5 {[%clk 0:01:26.9]} 18.
Nab6 {[%clk 0:02:35.7]} 18... Bd7 {[%clk 0:01:08.6]} 19. Bxe5 {[%clk 0:01:52.1]}
19... Bxe5 {[%clk 0:01:00.1]} 20. Nxe5 {[%clk 0:01:52.1]} 20... dxe5 {[%clk
0:00:47.4]} 21. d6 {[%clk 0:01:47.7]} 21... Nxd6 {[%clk 0:00:24.1]} 22. Nxd7
{[%clk 0:01:24.4]} 22... Qxd7 {[%clk 0:00:20.2]} 23. Qd5+ {[%clk 0:01:24.4]}
23... Kg7 {[%clk 0:00:12.1]} 24. Rfd1 {[%clk 0:01:22.3]} 24... Rbd8 {[%clk
0:00:11.6]} 25. Qxe5+ {[%clk 0:01:20.9]} 25... Rf6 {[%clk 0:00:11.4]} 26. Rd2
{[%clk 0:01:07.5]} 26... Qc6 {[%clk 0:00:05.1]} 27. Rad1 {[%clk 0:01:06]} 27...
Kf7 {[%clk 0:00:03.9]} 28. Bf3 {[%clk 0:01:02.8]} 28... Qc7 {[%clk 0:00:02.9]}
29. Bd5+ {[%clk 0:00:58.5]} 29... Kg7 {[%clk 0:00:01.8]} 30. Be6 {[%clk
0:00:59]} 30... Qe7 {[%clk 0:00:01.6]} 31. Rxd6 {[%clk 0:00:58.8]} 31... Rxd6
{[%clk 0:00:01.1]} 32. Rxd6 {[%clk 0:00:59.7]} 1-0